[Event "Early-Titled-Tuesday-Blitz-September-26-2023"]
[Site "Chess.com"]
[Date "2023.09.26"]
[Round "1"]
[White "Mesa_1"]
[Black "TomLiu777"]
[Result "1-0"]
[WhiteElo "2675"]
[BlackElo "2372"]
[TimeControl "180+1"]
[EndTime "8:06:58 PDT"]
[Termination "Mesa_1 won by resignation"]

1. e4 {[%clk 0:02:59.1]} 1... e6 {[%clk 0:02:58.7]} 2. d4 {[%clk 0:02:55.6]}
2... d5 {[%clk 0:02:56.1]} 3. Nd2 {[%clk 0:02:56.2]} 3... Be7 {[%clk 0:02:33.8]}
4. Ngf3 {[%clk 0:02:55.6]} 4... Nf6 {[%clk 0:02:33.3]} 5. e5 {[%clk 0:02:56.2]}
5... Nfd7 {[%clk 0:02:33.9]} 6. Bd3 {[%clk 0:02:56.8]} 6... c5 {[%clk
0:02:34.5]} 7. c3 {[%clk 0:02:57.5]} 7... b6 {[%clk 0:02:35.2]} 8. O-O {[%clk
0:02:53.1]} 8... Ba6 {[%clk 0:02:34.7]} 9. Bxa6 {[%clk 0:02:52.8]} 9... Nxa6
{[%clk 0:02:35.6]} 10. Ne1 {[%clk 0:02:50]} 10... b5 {[%clk 0:02:34.1]} 11. Qg4
{[%clk 0:02:48.3]} 11... g6 {[%clk 0:02:32.7]} 12. Ndf3 {[%clk 0:02:45.1]} 12...
h5 {[%clk 0:02:30.3]} 13. Qg3 {[%clk 0:02:42.7]} 13... h4 {[%clk 0:02:22.6]} 14.
Qg4 {[%clk 0:02:41.6]} 14... Qb6 {[%clk 0:02:20.4]} 15. Nd3 {[%clk 0:02:36.9]}
15... c4 {[%clk 0:02:14.8]} 16. Nf4 {[%clk 0:02:32.5]} 16... O-O-O {[%clk
0:02:08.7]} 17. Ng5 {[%clk 0:02:30.4]} 17... Bxg5 {[%clk 0:01:51.9]} 18. Qxg5
{[%clk 0:02:31.3]} 18... Rdg8 {[%clk 0:01:20.7]} 19. b3 {[%clk 0:02:25.5]} 19...
Qd8 {[%clk 0:01:18.3]} 20. Qg4 {[%clk 0:02:21.7]} 20... Nc7 {[%clk 0:01:07.9]}
21. Ba3 {[%clk 0:02:14.1]} 21... g5 {[%clk 0:01:04.1]} 22. Ne2 {[%clk 0:02:01]}
22... f5 {[%clk 0:01:00.9]} 23. Qf3 {[%clk 0:01:53]} 23... Nf6 {[%clk
0:01:01.3]} 24. exf6 {[%clk 0:01:51]} 24... Qxf6 {[%clk 0:00:48.4]} 25. Bd6
{[%clk 0:01:49.7]} 25... g4 {[%clk 0:00:45.7]} 26. Qf4 {[%clk 0:01:47.2]} 26...
Rh7 {[%clk 0:00:46]} 27. a4 {[%clk 0:01:43.4]} 27... g3 {[%clk 0:00:43.1]} 28.
fxg3 {[%clk 0:01:42.7]} 28... hxg3 {[%clk 0:00:40.6]} 29. hxg3 {[%clk
0:01:35.6]} 29... Qf7 {[%clk 0:00:14.9]} 30. Bxc7 {[%clk 0:01:32.7]} 30... Qh5
{[%clk 0:00:15.4]} 31. Kf2 {[%clk 0:01:24]} 31... Rg4 {[%clk 0:00:08.4]} 32. Qd6
{[%clk 0:01:14.1]} 32... Rxc7 {[%clk 0:00:02.8]} 33. Nf4 {[%clk 0:01:11.4]}
33... Qg5 {[%clk 0:00:02.4]} 34. Qxc7+ {[%clk 0:01:08]} 34... Kxc7 {[%clk
0:00:01.9]} 35. Nxe6+ {[%clk 0:01:08.9]} 35... Kd6 {[%clk 0:00:01.9]} 36. Nxg5
{[%clk 0:01:09.8]} 36... Rxg5 {[%clk 0:00:02.5]} 37. axb5 {[%clk 0:01:10.7]}
37... f4 {[%clk 0:00:02.4]} 38. bxc4 {[%clk 0:01:09.1]} 38... fxg3+ {[%clk
0:00:02.3]} 39. Ke2 {[%clk 0:01:09]} 39... dxc4 {[%clk 0:00:02]} 40. Ra6+ {[%clk
0:01:09.2]} 40... Kc7 {[%clk 0:00:01.6]} 41. Rxa7+ {[%clk 0:01:09.1]} 41... Kb6
{[%clk 0:00:02.5]} 42. Raf7 {[%clk 0:01:07.2]} 42... Kxb5 {[%clk 0:00:03.4]} 43.
R1f5+ {[%clk 0:01:06.9]} 43... Ka4 {[%clk 0:00:04.3]} 44. Rxg5 {[%clk
0:01:06.4]} 44... Kb3 {[%clk 0:00:05.2]} 45. Kd2 {[%clk 0:01:05.7]} 45... Kb2
{[%clk 0:00:04.9]} 46. Rb5+ {[%clk 0:01:05.9]} 1-0

[Event "Early-Titled-Tuesday-Blitz-September-26-2023"]
[Site "Chess.com"]
[Date "2023.09.26"]
[Round "1"]
[White "jasonbolivar"]
[Black "Arteler"]
[Result "0-1"]
[WhiteElo "2267"]
[BlackElo "2599"]
[TimeControl "180+1"]
[EndTime "8:06:59 PDT"]
[Termination "Arteler won on time"]

1. e4 {[%clk 0:02:09.5]} 1... e6 {[%clk 0:02:59]} 2. d3 {[%clk 0:02:09.1]} 2...
d5 {[%clk 0:02:59.5]} 3. Nd2 {[%clk 0:02:09.2]} 3... Nf6 {[%clk 0:03:00]} 4. g3
{[%clk 0:02:08.2]} 4... Nc6 {[%clk 0:02:57]} 5. Bg2 {[%clk 0:02:06.7]} 5... dxe4
{[%clk 0:02:57.5]} 6. dxe4 {[%clk 0:02:06.3]} 6... e5 {[%clk 0:02:58]} 7. Ngf3
{[%clk 0:02:03.5]} 7... Bc5 {[%clk 0:02:58.1]} 8. O-O {[%clk 0:02:03.1]} 8...
O-O {[%clk 0:02:58.6]} 9. h3 {[%clk 0:01:54.7]} 9... Qe7 {[%clk 0:02:55.9]} 10.
c3 {[%clk 0:01:49.5]} 10... a5 {[%clk 0:02:56.2]} 11. a4 {[%clk 0:01:43.6]}
11... b6 {[%clk 0:02:56.2]} 12. Re1 {[%clk 0:01:43.1]} 12... Ba6 {[%clk
0:02:55.3]} 13. Bf1 {[%clk 0:01:42]} 13... Bxf1 {[%clk 0:02:51.5]} 14. Kxf1
{[%clk 0:01:42]} 14... Rad8 {[%clk 0:02:50.4]} 15. Qc2 {[%clk 0:01:40.3]} 15...
Rd7 {[%clk 0:02:29.4]} 16. Kg2 {[%clk 0:01:39]} 16... Rfd8 {[%clk 0:02:29]} 17.
Nc4 {[%clk 0:01:37.2]} 17... Qe6 {[%clk 0:02:24.9]} 18. b3 {[%clk 0:01:31.8]}
18... h6 {[%clk 0:02:25]} 19. Be3 {[%clk 0:01:29.8]} 19... Bf8 {[%clk
0:02:20.4]} 20. Nfd2 {[%clk 0:01:15.5]} 20... Rd3 {[%clk 0:02:00.8]} 21. f3
{[%clk 0:00:53.6]} 21... Nh5 {[%clk 0:01:55.7]} 22. Nf1 {[%clk 0:00:50.3]} 22...
Qg6 {[%clk 0:01:48.6]} 23. Rad1 {[%clk 0:00:30.3]} 23... Rxd1 {[%clk 0:01:35.7]}
24. Rxd1 {[%clk 0:00:31.2]} 24... Rc8 {[%clk 0:01:29.1]} 25. Kh2 {[%clk
0:00:21.3]} 25... Be7 {[%clk 0:01:28.1]} 26. Qd2 {[%clk 0:00:19.8]} 26... Rf8
{[%clk 0:01:13.1]} 27. g4 {[%clk 0:00:17.5]} 27... Nf6 {[%clk 0:01:07.1]} 28.
Qf2 {[%clk 0:00:17.1]} 28... Nh7 {[%clk 0:00:58.6]} 29. Ng3 {[%clk 0:00:17]}
29... Bh4 {[%clk 0:00:57.5]} 30. Qg2 {[%clk 0:00:12.4]} 30... Bxg3+ {[%clk
0:00:57.8]} 31. Qxg3 {[%clk 0:00:12.4]} 31... Qf6 {[%clk 0:00:56]} 32. Bc1
{[%clk 0:00:11.4]} 32... Ng5 {[%clk 0:00:56.4]} 33. Rf1 {[%clk 0:00:10.6]} 33...
Ne6 {[%clk 0:00:56.5]} 34. Ne3 {[%clk 0:00:10.1]} 34... Nf4 {[%clk 0:00:56]} 35.
Nd5 {[%clk 0:00:09.9]} 35... Nxd5 {[%clk 0:00:55.3]} 36. exd5 {[%clk 0:00:10.8]}
36... Ne7 {[%clk 0:00:56.2]} 37. c4 {[%clk 0:00:11.1]} 37... Ng6 {[%clk
0:00:54.5]} 38. Bb2 {[%clk 0:00:10.7]} 38... Re8 {[%clk 0:00:53.3]} 39. Re1
{[%clk 0:00:10.8]} 39... Qd6 {[%clk 0:00:52.9]} 40. Re4 {[%clk 0:00:10.6]} 40...
Qb4 {[%clk 0:00:50.3]} 41. Bxe5 {[%clk 0:00:05.6]} 41... Qd2+ {[%clk 0:00:42.1]}
0-1

[Event "Early-Titled-Tuesday-Blitz-September-26-2023"]
[Site "Chess.com"]
[Date "2023.09.26"]
[Round "1"]
[White "LoydBlankenship"]
[Black "esrosenberg"]
[Result "1-0"]
[WhiteElo "2632"]
[BlackElo "2332"]
[TimeControl "180+1"]
[EndTime "8:07:00 PDT"]
[Termination "LoydBlankenship won on time"]

1. e4 {[%clk 0:02:59.3]} 1... e5 {[%clk 0:02:59.5]} 2. Nf3 {[%clk 0:02:59]} 2...
Nc6 {[%clk 0:02:58.8]} 3. d4 {[%clk 0:02:59.4]} 3... exd4 {[%clk 0:02:58.7]} 4.
Nxd4 {[%clk 0:03:00.3]} 4... Nf6 {[%clk 0:02:58.7]} 5. Nxc6 {[%clk 0:03:00.6]}
5... bxc6 {[%clk 0:02:59]} 6. e5 {[%clk 0:03:01]} 6... Qe7 {[%clk 0:02:58.7]} 7.
Qe2 {[%clk 0:03:01.4]} 7... Nd5 {[%clk 0:02:58.9]} 8. c4 {[%clk 0:03:02.1]} 8...
Ba6 {[%clk 0:02:53.7]} 9. b3 {[%clk 0:03:01.2]} 9... g6 {[%clk 0:02:49.3]} 10.
f4 {[%clk 0:03:01.4]} 10... d6 {[%clk 0:02:46.4]} 11. Qf2 {[%clk 0:02:51.6]}
11... Nb6 {[%clk 0:02:20.9]} 12. c5 {[%clk 0:02:41.6]} 12... Bxf1 {[%clk
0:02:19.6]} 13. cxb6 {[%clk 0:02:41.3]} 13... Ba6 {[%clk 0:02:14.4]} 14. bxc7
{[%clk 0:02:41.1]} 14... Qxc7 {[%clk 0:02:05.6]} 15. Bb2 {[%clk 0:02:29.3]}
15... Bg7 {[%clk 0:01:22.3]} 16. exd6 {[%clk 0:02:23.8]} 16... Qa5+ {[%clk
0:01:22.5]} 17. Kd1 {[%clk 0:02:20.6]} 17... Qd5+ {[%clk 0:01:07.7]} 18. Kc1
{[%clk 0:02:20.4]} 18... Bxb2+ {[%clk 0:01:01.6]} 19. Kxb2 {[%clk 0:02:19.3]}
19... O-O {[%clk 0:00:57]} 20. Nc3 {[%clk 0:02:08.9]} 20... Qxd6 {[%clk
0:00:56.7]} 21. Rad1 {[%clk 0:02:03.9]} 21... Qf6 {[%clk 0:00:57.4]} 22. Rhe1
{[%clk 0:01:57.8]} 22... Rfd8 {[%clk 0:00:35.7]} 23. g3 {[%clk 0:01:57.7]} 23...
h5 {[%clk 0:00:33]} 24. Qc5 {[%clk 0:01:55]} 24... Bd3 {[%clk 0:00:20.5]} 25.
Qe5 {[%clk 0:01:51.6]} 25... Qxe5 {[%clk 0:00:16.8]} 26. Rxe5 {[%clk 0:01:52.5]}
26... Bf5 {[%clk 0:00:17.2]} 27. Rc5 {[%clk 0:01:51.6]} 27... Rxd1 {[%clk
0:00:15.1]} 28. Nxd1 {[%clk 0:01:52.5]} 28... Be4 {[%clk 0:00:15.5]} 29. Nc3
{[%clk 0:01:51]} 29... Bf3 {[%clk 0:00:16]} 30. Kc2 {[%clk 0:01:48.8]} 30... a5
{[%clk 0:00:15.8]} 31. a4 {[%clk 0:01:47.9]} 31... Kf8 {[%clk 0:00:15.8]} 32. h4
{[%clk 0:01:47.4]} 32... Ke7 {[%clk 0:00:16.2]} 33. Nb1 {[%clk 0:01:47.1]} 33...
Kd6 {[%clk 0:00:16.4]} 34. Re5 {[%clk 0:01:46.5]} 34... f6 {[%clk 0:00:13.6]}
35. Re3 {[%clk 0:01:46.2]} 35... Bg4 {[%clk 0:00:13.5]} 36. Nc3 {[%clk
0:01:46.4]} 36... Bf5+ {[%clk 0:00:13.5]} 37. Kb2 {[%clk 0:01:46]} 37... Rb8
{[%clk 0:00:13.6]} 38. Re2 {[%clk 0:01:44.1]} 38... Kc5 {[%clk 0:00:12]} 39. Nd1
{[%clk 0:01:41.3]} 39... Bg4 {[%clk 0:00:10.6]} 40. Rc2+ {[%clk 0:01:41.1]}
40... Kd6 {[%clk 0:00:11.1]} 41. Ne3 {[%clk 0:01:41.1]} 41... Be6 {[%clk
0:00:11.4]} 42. Rd2+ {[%clk 0:01:41.1]} 42... Kc5 {[%clk 0:00:09.6]} 43. Rd3
{[%clk 0:01:41.2]} 43... Rb4 {[%clk 0:00:07.4]} 44. Rc3+ {[%clk 0:01:38.1]}
44... Kd6 {[%clk 0:00:06.6]} 45. Kc2 {[%clk 0:01:37.7]} 45... Re4 {[%clk
0:00:05.6]} 46. Kd3 {[%clk 0:01:36.8]} 46... Rb4 {[%clk 0:00:05.2]} 47. Kc2
{[%clk 0:01:34.7]} 47... g5 {[%clk 0:00:05]} 48. fxg5 {[%clk 0:01:33.7]} 48...
fxg5 {[%clk 0:00:05.9]} 49. hxg5 {[%clk 0:01:34.6]} 49... Ke5 {[%clk 0:00:04.4]}
50. Rxc6 {[%clk 0:01:32.4]} 50... Bxb3+ {[%clk 0:00:04]} 51. Kc3 {[%clk
0:01:32.2]} 51... Bxa4 {[%clk 0:00:04.2]} 52. Rc5+ {[%clk 0:01:31.7]} 52... Ke4
{[%clk 0:00:04.4]} 53. Nc4 {[%clk 0:01:22.7]} 53... Rb3+ {[%clk 0:00:04.1]} 54.
Kd2 {[%clk 0:01:23.2]} 54... Rxg3 {[%clk 0:00:04]} 55. Rxa5 {[%clk 0:01:21.8]}
55... Bb3 {[%clk 0:00:02.4]} 56. Nd6+ {[%clk 0:01:21.8]} 56... Kf4 {[%clk
0:00:02.3]} 57. Rb5 {[%clk 0:01:19.9]} 1-0

[Event "Early-Titled-Tuesday-Blitz-September-26-2023"]
[Site "Chess.com"]
[Date "2023.09.26"]
[Round "1"]
[White "MikeSailer"]
[Black "Mackster23"]
[Result "0-1"]
[WhiteElo "2186"]
[BlackElo "2565"]
[TimeControl "180+1"]
[EndTime "8:07:03 PDT"]
[Termination "Mackster23 won by resignation"]

1. d4 {[%clk 0:03:00.2]} 1... Nf6 {[%clk 0:03:00]} 2. Nc3 {[%clk 0:03:00.7]}
2... d5 {[%clk 0:02:58.9]} 3. Bf4 {[%clk 0:03:00.7]} 3... c5 {[%clk 0:02:56.6]}
4. e4 {[%clk 0:02:59.7]} 4... Nxe4 {[%clk 0:02:41.4]} 5. Nxe4 {[%clk 0:02:55.6]}
5... dxe4 {[%clk 0:02:42.3]} 6. dxc5 {[%clk 0:02:56.1]} 6... Qxd1+ {[%clk
0:02:42]} 7. Rxd1 {[%clk 0:02:56]} 7... Bd7 {[%clk 0:02:42.7]} 8. Bc4 {[%clk
0:02:43.5]} 8... Nc6 {[%clk 0:02:38.8]} 9. Ne2 {[%clk 0:02:38.4]} 9... e5 {[%clk
0:02:31.2]} 10. Be3 {[%clk 0:02:38.1]} 10... f5 {[%clk 0:02:30.9]} 11. g3 {[%clk
0:02:33.3]} 11... O-O-O {[%clk 0:02:23.7]} 12. a3 {[%clk 0:02:23.6]} 12... Be7
{[%clk 0:02:08.9]} 13. b4 {[%clk 0:02:21.7]} 13... g5 {[%clk 0:02:08.6]} 14. Nc3
{[%clk 0:01:36.7]} 14... f4 {[%clk 0:02:08]} 15. Bc1 {[%clk 0:01:34.3]} 15...
Bg4 {[%clk 0:01:52.3]} 16. Rxd8+ {[%clk 0:01:32.1]} 16... Rxd8 {[%clk
0:01:53.2]} 17. O-O {[%clk 0:01:30.7]} 17... Rd4 {[%clk 0:01:11.4]} 18. Bd5
{[%clk 0:01:18.3]} 18... Bf3 {[%clk 0:01:10]} 19. Bb2 {[%clk 0:01:06.1]} 19...
a5 {[%clk 0:00:54]} 20. Bxc6 {[%clk 0:00:40.1]} 20... bxc6 {[%clk 0:00:54.9]}
21. Na4 {[%clk 0:00:33.3]} 21... Rd2 {[%clk 0:00:44]} 22. Bxe5 {[%clk
0:00:30.1]} 22... e3 {[%clk 0:00:34.2]} 23. fxe3 {[%clk 0:00:20]} 23... Rg2+
{[%clk 0:00:33.6]} 24. Kh1 {[%clk 0:00:18.8]} 24... Rxg3+ {[%clk 0:00:33.3]} 25.
Rxf3 {[%clk 0:00:17.9]} 25... Rxf3 {[%clk 0:00:34.2]} 26. exf4 {[%clk
0:00:15.3]} 26... gxf4 {[%clk 0:00:34.1]} 27. Kg2 {[%clk 0:00:14.5]} 27... Rxa3
{[%clk 0:00:33.5]} 28. Nb6+ {[%clk 0:00:15.2]} 28... Kd8 {[%clk 0:00:26.8]} 29.
Bxf4 {[%clk 0:00:15.5]} 29... axb4 {[%clk 0:00:25.9]} 30. Nc4 {[%clk 0:00:09.5]}
30... Rc3 {[%clk 0:00:24.2]} 31. Nd6 {[%clk 0:00:10.1]} 31... Rxc2+ {[%clk
0:00:22.3]} 32. Kf3 {[%clk 0:00:09.8]} 32... Bxd6 {[%clk 0:00:22.9]} 33. Bxd6
{[%clk 0:00:08.9]} 33... b3 {[%clk 0:00:22.8]} 0-1

[Event "Early-Titled-Tuesday-Blitz-September-26-2023"]
[Site "Chess.com"]
[Date "2023.09.26"]
[Round "1"]
[White "Maxterlopez"]
[Black "ellatambien"]
[Result "0-1"]
[WhiteElo "2751"]
[BlackElo "2480"]
[TimeControl "180+1"]
[EndTime "8:07:05 PDT"]
[Termination "ellatambien won on time"]

1. e4 {[%clk 0:02:59.4]} 1... e5 {[%clk 0:02:59.7]} 2. Nf3 {[%clk 0:02:59.1]}
2... Nc6 {[%clk 0:02:59.5]} 3. Bc4 {[%clk 0:02:59.7]} 3... Nf6 {[%clk
0:02:59.1]} 4. d3 {[%clk 0:03:00]} 4... Bc5 {[%clk 0:02:58.6]} 5. c3 {[%clk
0:03:00.2]} 5... O-O {[%clk 0:02:57.6]} 6. O-O {[%clk 0:02:59.8]} 6... d6 {[%clk
0:02:57]} 7. h3 {[%clk 0:02:59.8]} 7... a5 {[%clk 0:02:55]} 8. Bb3 {[%clk
0:02:58.4]} 8... h6 {[%clk 0:02:53.4]} 9. Nbd2 {[%clk 0:02:57.9]} 9... Be6
{[%clk 0:02:52.2]} 10. Bc2 {[%clk 0:02:57.5]} 10... d5 {[%clk 0:02:50.7]} 11.
exd5 {[%clk 0:02:57.2]} 11... Bxd5 {[%clk 0:02:49]} 12. Re1 {[%clk 0:02:58.1]}
12... Re8 {[%clk 0:02:48.4]} 13. Ne4 {[%clk 0:02:55.2]} 13... Nxe4 {[%clk
0:02:21.9]} 14. dxe4 {[%clk 0:02:56.1]} 14... Bc4 {[%clk 0:02:22]} 15. Nd2
{[%clk 0:02:45]} 15... Be6 {[%clk 0:02:19.3]} 16. Qf3 {[%clk 0:02:43.9]} 16...
Ne7 {[%clk 0:02:15.8]} 17. Nf1 {[%clk 0:02:27.1]} 17... Ng6 {[%clk 0:02:11.9]}
18. Ng3 {[%clk 0:02:21.2]} 18... Kh7 {[%clk 0:02:02.3]} 19. Nf5 {[%clk 0:02:20]}
19... Qf6 {[%clk 0:01:59.9]} 20. Qg3 {[%clk 0:02:08.3]} 20... Rad8 {[%clk
0:01:57.7]} 21. a4 {[%clk 0:01:30.9]} 21... Rd7 {[%clk 0:01:56.4]} 22. Rb1
{[%clk 0:01:26.7]} 22... Red8 {[%clk 0:01:49.2]} 23. b4 {[%clk 0:01:26.7]} 23...
axb4 {[%clk 0:01:45.2]} 24. cxb4 {[%clk 0:01:27.6]} 24... Bd4 {[%clk 0:01:37.3]}
25. Nxd4 {[%clk 0:01:24.2]} 25... Rxd4 {[%clk 0:01:38.2]} 26. Be3 {[%clk
0:01:21.9]} 26... Rc4 {[%clk 0:01:29.8]} 27. Rb2 {[%clk 0:01:00.6]} 27... Rc3
{[%clk 0:01:28.5]} 28. Kh2 {[%clk 0:00:51.5]} 28... Nf4 {[%clk 0:01:20.4]} 29.
Qf3 {[%clk 0:00:49.5]} 29... g5 {[%clk 0:00:42.8]} 30. Rd1 {[%clk 0:00:47.4]}
30... g4 {[%clk 0:00:30.9]} 31. hxg4 {[%clk 0:00:32.1]} 31... Qh4+ {[%clk
0:00:30.8]} 32. Kg1 {[%clk 0:00:31.6]} 32... Bxg4 {[%clk 0:00:30.2]} 33. Rxd8
{[%clk 0:00:02.5]} 33... Bxf3 {[%clk 0:00:27.6]} 34. gxf3 {[%clk 0:00:03.4]}
34... Qxd8 {[%clk 0:00:23]} 0-1

[Event "Early-Titled-Tuesday-Blitz-September-26-2023"]
[Site "Chess.com"]
[Date "2023.09.26"]
[Round "1"]
[White "chessdjw"]
[Black "verrbaa"]
[Result "1-0"]
[WhiteElo "2704"]
[BlackElo "2410"]
[TimeControl "180+1"]
[EndTime "8:07:07 PDT"]
[Termination "chessdjw won on time"]

1. d4 {[%clk 0:02:58.9]} 1... Nf6 {[%clk 0:02:59]} 2. Nf3 {[%clk 0:02:59]} 2...
d5 {[%clk 0:02:56.7]} 3. c4 {[%clk 0:02:58.8]} 3... e6 {[%clk 0:02:56.4]} 4. g3
{[%clk 0:02:59]} 4... dxc4 {[%clk 0:02:55.4]} 5. Bg2 {[%clk 0:02:59.4]} 5... a6
{[%clk 0:02:51.5]} 6. O-O {[%clk 0:02:58.8]} 6... Nc6 {[%clk 0:02:51]} 7. a4
{[%clk 0:02:56.4]} 7... Rb8 {[%clk 0:02:27.4]} 8. a5 {[%clk 0:02:55.9]} 8... Bb4
{[%clk 0:01:38.3]} 9. Na3 {[%clk 0:02:55.4]} 9... Bxa5 {[%clk 0:01:27.3]} 10.
Nxc4 {[%clk 0:02:55]} 10... Bb4 {[%clk 0:01:27.6]} 11. e4 {[%clk 0:02:45.6]}
11... O-O {[%clk 0:01:14.5]} 12. Qc2 {[%clk 0:02:25.4]} 12... Nxd4 {[%clk
0:00:49.7]} 13. Nxd4 {[%clk 0:02:26.3]} 13... Qxd4 {[%clk 0:00:50.1]} 14. Rd1
{[%clk 0:02:01]} 14... Qc5 {[%clk 0:00:49.8]} 15. Be3 {[%clk 0:01:59.6]} 15...
Qc6 {[%clk 0:00:41.6]} 16. Qe2 {[%clk 0:01:32.1]} 16... b5 {[%clk 0:00:32.8]}
17. Ne5 {[%clk 0:01:26.2]} 17... Qe8 {[%clk 0:00:32.6]} 18. Rac1 {[%clk
0:01:21.7]} 18... Bd6 {[%clk 0:00:29.3]} 19. Nc6 {[%clk 0:01:20.2]} 19... e5
{[%clk 0:00:07.8]} 20. Nxb8 {[%clk 0:01:19.6]} 20... Bb7 {[%clk 0:00:08.3]} 21.
Nxa6 {[%clk 0:01:06.9]} 21... Bxa6 {[%clk 0:00:08.6]} 22. Bg5 {[%clk 0:01:07.3]}
22... Nd7 {[%clk 0:00:08.5]} 23. Qg4 {[%clk 0:01:03.9]} 23... Kh8 {[%clk
0:00:05]} 24. Bf1 {[%clk 0:01:00.3]} 24... Nb6 {[%clk 0:00:04.6]} 25. h4 {[%clk
0:00:58.9]} 25... f6 {[%clk 0:00:04.6]} 26. Be3 {[%clk 0:00:59.1]} 26... Qe7
{[%clk 0:00:05.2]} 27. h5 {[%clk 0:00:59]} 27... Nc4 {[%clk 0:00:04.6]} 28. Bxc4
{[%clk 0:00:56.1]} 28... bxc4 {[%clk 0:00:05.5]} 29. Rd5 {[%clk 0:00:36.6]}
29... Bc8 {[%clk 0:00:03.5]} 30. Qh4 {[%clk 0:00:32]} 30... Be6 {[%clk
0:00:04.4]} 31. Ra5 {[%clk 0:00:31.7]} 31... Qd7 {[%clk 0:00:03.5]} 32. Rca1
{[%clk 0:00:29.1]} 32... Qc6 {[%clk 0:00:03.4]} 33. Ra6 {[%clk 0:00:28.4]} 33...
Qb7 {[%clk 0:00:02.6]} 34. h6 {[%clk 0:00:27.5]} 34... g6 {[%clk 0:00:02.5]} 35.
Ra7 {[%clk 0:00:24.9]} 35... Qxb2 {[%clk 0:00:01.6]} 36. Ra8 {[%clk 0:00:25.6]}
36... Kg8 {[%clk 0:00:01.2]} 37. Qxf6 {[%clk 0:00:20.7]} 1-0

[Event "Early-Titled-Tuesday-Blitz-September-26-2023"]
[Site "Chess.com"]
[Date "2023.09.26"]
[Round "1"]
[White "moro182"]
[Black "Caroexpert"]
[Result "1-0"]
[WhiteElo "2810"]
[BlackElo "2474"]
[TimeControl "180+1"]
[EndTime "8:07:08 PDT"]
[Termination "moro182 won on time"]

1. d4 {[%clk 0:03:00.9]} 1... Nf6 {[%clk 0:02:56.7]} 2. Bf4 {[%clk 0:03:01.1]}
2... d5 {[%clk 0:02:56.7]} 3. e3 {[%clk 0:03:01.1]} 3... c5 {[%clk 0:02:56.7]}
4. dxc5 {[%clk 0:03:02]} 4... e6 {[%clk 0:02:56.4]} 5. b4 {[%clk 0:03:01.5]}
5... a5 {[%clk 0:02:54.7]} 6. c3 {[%clk 0:03:01.7]} 6... axb4 {[%clk 0:02:54.6]}
7. cxb4 {[%clk 0:03:01.4]} 7... b6 {[%clk 0:02:55.5]} 8. Bxb8 {[%clk 0:03:01.1]}
8... Rxb8 {[%clk 0:02:55.4]} 9. Bb5+ {[%clk 0:03:01]} 9... Ke7 {[%clk
0:02:52.1]} 10. c6 {[%clk 0:03:01.9]} 10... Qd6 {[%clk 0:02:41.7]} 11. a3 {[%clk
0:03:00.1]} 11... g6 {[%clk 0:02:35.3]} 12. Nc3 {[%clk 0:02:59.1]} 12... Bg7
{[%clk 0:02:35.9]} 13. Rc1 {[%clk 0:02:59.6]} 13... Rd8 {[%clk 0:02:33.9]} 14.
Nf3 {[%clk 0:02:46.2]} 14... e5 {[%clk 0:02:24.9]} 15. O-O {[%clk 0:02:42.3]}
15... Kf8 {[%clk 0:01:54]} 16. h3 {[%clk 0:02:39.6]} 16... Bf5 {[%clk
0:01:43.5]} 17. Qb3 {[%clk 0:02:35.7]} 17... Be6 {[%clk 0:01:35.2]} 18. Rfd1
{[%clk 0:02:32.4]} 18... Qc7 {[%clk 0:01:26.9]} 19. Qc2 {[%clk 0:02:30.7]} 19...
Ne8 {[%clk 0:01:16.2]} 20. Ng5 {[%clk 0:02:26]} 20... Bf5 {[%clk 0:01:15.2]} 21.
Qe2 {[%clk 0:02:22.7]} 21... h6 {[%clk 0:01:13.9]} 22. Nf3 {[%clk 0:02:13.9]}
22... d4 {[%clk 0:01:14.2]} 23. exd4 {[%clk 0:02:11.6]} 23... exd4 {[%clk
0:01:15.1]} 24. Ne4 {[%clk 0:02:10.5]} 24... Nd6 {[%clk 0:01:06.7]} 25. Nxd6
{[%clk 0:02:09.7]} 25... Rxd6 {[%clk 0:01:07.6]} 26. a4 {[%clk 0:02:00.6]} 26...
Re8 {[%clk 0:01:07.4]} 27. Qd2 {[%clk 0:01:59.2]} 27... Be4 {[%clk 0:00:58.7]}
28. Qf4 {[%clk 0:01:56]} 28... g5 {[%clk 0:00:48.8]} 29. Qg3 {[%clk 0:01:41.8]}
29... f5 {[%clk 0:00:40.1]} 30. Nd2 {[%clk 0:01:30]} 30... f4 {[%clk 0:00:35]}
31. Qg4 {[%clk 0:01:27.5]} 31... Bg6 {[%clk 0:00:35.5]} 32. Re1 {[%clk
0:01:25.5]} 32... d3 {[%clk 0:00:30.1]} 33. Rxe8+ {[%clk 0:01:19.8]} 33... Bxe8
{[%clk 0:00:31]} 34. Qf5+ {[%clk 0:01:13.2]} 34... Kg8 {[%clk 0:00:27.5]} 35.
Qe4 {[%clk 0:01:08]} 35... Bg6 {[%clk 0:00:27]} 36. Qc4+ {[%clk 0:01:08.3]}
36... Kh7 {[%clk 0:00:27]} 37. a5 {[%clk 0:01:08.5]} 37... bxa5 {[%clk
0:00:23.5]} 38. bxa5 {[%clk 0:01:09.4]} 38... Rd4 {[%clk 0:00:18.1]} 39. Qc5
{[%clk 0:01:06.9]} 39... Rd8 {[%clk 0:00:08.7]} 40. Qb6 {[%clk 0:01:05.7]} 40...
Rc8 {[%clk 0:00:06.4]} 41. Qxc7 {[%clk 0:00:57.7]} 41... Rxc7 {[%clk 0:00:07.3]}
42. Rc4 {[%clk 0:00:58.5]} 42... Be5 {[%clk 0:00:03.2]} 43. a6 {[%clk
0:00:56.5]} 43... Ra7 {[%clk 0:00:02.6]} 44. Rc5 {[%clk 0:00:54.8]} 44... Bc7
{[%clk 0:00:01.9]} 45. Rd5 {[%clk 0:00:53.8]} 1-0